bitfinex/quotes_ETHUSD_20220123
["timestamp","ask_amount","ask_price","bid_price","bid_amount"]
[1642918672430,7.3426,2473.3,2471.7,4.04933581]
[1642918672677,7.3426,2473.3,2471.8,0.01762113]
[1642918672876,7.3426,2473.3,2471.9,0.2023]
[1642918673077,1.18820131,2473.1,2472.9,14.862564]
[1642918673285,1.68220131,2473.1,2472.9,14.862564]
[1642918673483,2.8,2473.0,2472.9,6.77247404]
[1642918673690,2.8,2473.0,2472.9,2.31734566]
[1642918673884,2.8,2473.0,2471.3,3.88369547]
[1642918673885,3.05,2472.9,2471.3,3.88369547]
[1642918674185,3.05,2472.9,2471.4,0.00909478]
[1642918674186,3.194,2472.8,2471.4,0.00909478]
[1642918674383,1.29623602,2472.3,2471.4,0.00909478]
[1642918674585,8.0068,2472.2,2471.3,0.0096632]
[1642918674785,8.0068,2472.2,2471.1,0.01080005]
[1642918675186,8.0068,2472.2,2471.0,0.01136847]
[1642918677130,9.01976,2472.2,2471.0,0.01136847]
[1642918677334,0.16456,2472.1,2471.0,0.01136847]
[1642918677631,1.3176253,2471.9,2471.0,0.01136847]
[1642918677831,0.494,2471.9,2471.0,0.01136847]
[1642918678034,0.494,2471.9,2470.8,2.87495965]
[1642918678232,0.494,2471.9,2470.8,0.01250532]
[1642918678434,0.494,2471.9,2470.9,0.0119369]
[1642918678636,0.494,2471.9,2470.8,0.01250532]
[1642918679243,0.67069503,2471.9,2470.8,0.01250532]
[1642918679540,0.67069503,2471.9,2470.4,0.27639994]
[1642918679541,0.67069503,2471.9,2470.5,0.01421059]
[1642918679741,0.02287,2471.8,2470.4,2.82813234]
[1642918679939,0.02287,2471.8,2470.2,0.2069]
[1642918679940,0.5242595,2471.8,2470.2,0.2069]
[1642918680175,2.02662,2471.6,2470.2,0.2069]
[1642918680378,2.02662,2471.6,2470.3,0.00113685]
[1642918680575,0.49968423,2471.5,2470.4,1.1306591]
[1642918680779,0.00568423,2471.5,2470.8,1.28998685]
[1642918680976,0.00511581,2471.4,2470.8,1.28998685]
[1642918681176,0.00511581,2471.4,2470.9,1.38537977]
[1642918681385,0.00454739,2471.3,2470.9,1.38537977]
[1642918681882,0.00397896,2471.2,2470.9,1.38537977]
[1642918682079,0.00397896,2471.2,2471.0,2.7189017]
[1642918682283,10.0911,2471.7,2471.2,0.04394863]
[1642918682481,10.0911,2471.7,2471.2,3.77184253]
[1642918682682,10.0911,2471.7,2471.4,0.0126281]
[1642918682683,0.00235266,2471.6,2471.4,0.0126281]
[1642918683082,0.00178423,2471.5,2471.4,0.0126281]
[1642918683281,0.00178423,2471.5,2471.4,1.4151335]
[1642918683483,0.00178423,2471.5,2471.4,3.74469666]
[1642918684329,0.00178423,2471.5,2471.4,6.41992149]
[1642918684530,0.00178423,2471.5,2471.4,6.40047054]
[1642918684731,0.00178423,2471.5,2471.4,6.3846226]
[1642918685131,0.00178423,2471.5,2471.4,3.74469666]
[1642918685331,0.00178423,2471.5,2471.4,6.38174675]
[1642918685731,0.00178423,2471.5,2471.4,3.74469666]
[1642918685932,0.00178423,2471.5,2471.4,6.45191449]
[1642918686138,0.00178423,2471.5,2471.2,0.17956316]
[1642918686536,0.00121581,2471.4,2471.2,0.17956316]
[1642918686936,0.00519478,2472.1,2471.2,0.17956316]
[1642918687334,0.00462635,2472.0,2471.2,0.17956316]
[1642918687534,0.00462635,2472.0,2471.3,1.4459403]
[1642918687775,0.00405793,2471.9,2471.3,1.4459403]
[1642918688175,0.494,2472.3,2471.3,1.4459403]
[1642918688176,0.0034895,2471.8,2471.3,1.4459403]
[1642918688579,0.00292108,2471.7,2471.2,0.17956316]
[1642918688788,0.00292108,2471.7,2470.5,2.91466787]
[1642918688982,0.51687,2472.1,2470.5,0.19160442]
[1642918688983,0.52206478,2472.1,2470.5,0.19160442]
[1642918689186,0.52206478,2472.1,2470.6,0.00333158]
[1642918689382,0.00462635,2472.0,2470.6,0.00333158]
[1642918689581,1.16809229,2472.0,2470.6,1.19510539]
[1642918689781,0.51687,2472.1,2470.7,2.54632663]
[1642918689782,0.00405793,2471.9,2470.7,2.54632663]
[1642918689983,0.00405793,2471.9,2470.7,2.62952238]
[1642918690183,0.51687,2472.1,2470.8,0.00219473]
[1642918690184,0.0034895,2471.8,2470.8,0.00219473]
[1642918690587,0.00292108,2471.7,2470.8,0.00219473]
[1642918690988,0.00462635,2472.0,2471.1,1.22042426]
[1642918691187,0.00462635,2472.0,2471.5,1.1084442]
[1642918691444,0.00405793,2471.9,2471.6,3.15247072]
[1642918691631,0.00405793,2471.9,2471.7,0.08851228]
[1642918691843,7.5128,2472.2,2471.7,0.01210488]
[1642918691844,0.0034895,2471.8,2471.7,0.01210488]
[1642918692031,10.5647,2472.7,2471.8,3.05]
[1642918692232,7.0556,2472.6,2472.5,1.35968755]
[1642918692433,7.0556,2472.6,2472.5,3.9793869]
[1642918692732,6.71128544,2472.6,2472.1,0.20228]
[1642918693232,0.00397897,2472.5,2472.1,0.20228]
[1642918693634,0.00341055,2472.4,2471.5,2.72242354]
[1642918693834,0.00341055,2472.4,2471.4,1.61899726]
[1642918694032,0.00284212,2472.3,2471.6,0.00113684]
[1642918694236,0.00284212,2472.3,2470.7,3.823492]
[1642918694237,0.00284212,2472.3,2471.5,0.00170527]
[1642918694436,0.494,2472.4,2471.5,0.00170527]
[1642918694437,0.0022737,2472.2,2471.5,0.00170527]
[1642918694635,0.0022737,2472.2,2470.9,0.00511581]
[1642918694833,0.00170528,2472.1,2471.0,1.51915901]
[1642918695035,0.00170528,2472.1,2471.1,2.50215356]
[1642918695273,0.00113685,2472.0,2471.1,0.00397896]
[1642918695479,0.49513685,2472.0,2471.2,0.00341054]
[1642918695777,0.49513685,2472.0,2470.6,0.00682108]
[1642918696576,2.01914837,2472.0,2470.6,0.00682108]
[1642918696877,0.49513685,2472.0,2470.6,0.00682108]
[1642918698282,0.49513685,2472.0,2470.6,2.91617881]
[1642918698485,1.01312,2471.8,2470.6,2.91617881]
[1642918698682,0.494,2471.7,2470.7,0.00625265]
[1642918699131,0.494,2471.7,2470.5,0.0073895]
[1642918699534,0.51687,2471.7,2470.5,0.0073895]
[1642918700032,1.01329,2471.4,2470.5,0.0073895]
[1642918700232,2.17405076,2471.4,2470.5,0.0073895]
[1642918700433,2.19692076,2471.4,2470.5,0.0073895]
[1642918700633,17.0415,2471.3,2470.5,0.0073895]
[1642918700834,0.02287,2471.2,2470.5,0.0073895]
[1642918701234,0.02287,2471.2,2470.1,0.00966319]
[1642918701432,0.02287,2471.2,2469.7,0.01193689]
[1642918701637,0.02287,2471.2,2469.8,3.44266504]
[1642918701837,1.01345,2471.0,2469.8,3.44266504]
[1642918702037,1.01345,2471.0,2470.0,1.15136842]
[1642918702235,1.01345,2471.0,2469.9,0.01080004]
[1642918702443,1.01345,2471.0,2470.1,0.00966319]
[1642918702678,1.01345,2471.0,2469.7,0.01193689]
[1642918702872,1.01345,2471.0,2469.8,3.44270389]
[1642918703073,1.01345,2471.0,2469.9,2.80765382]
[1642918703273,1.01345,2471.0,2469.9,2.81845386]
[1642918703472,1.01345,2471.0,2470.0,0.07746282]
[1642918703676,1.01345,2471.0,2470.0,2.88511664]
[1642918703876,1.01345,2471.0,2470.1,0.00966319]
[1642918704882,1.33632,2471.0,2470.1,0.00966319]
[1642918705089,0.494,2470.9,2470.1,0.00966319]
[1642918705282,0.02287,2470.8,2470.1,0.00966319]
[1642918705483,0.494,2470.7,2470.1,0.00966319]
[1642918705984,3.9393,2471.2,2470.1,2.76447539]
[1642918706183,9.6794,2471.3,2470.3,0.07815268]
[1642918706625,9.6794,2471.3,2470.4,0.00795792]
[1642918707028,9.6794,2471.3,2470.9,1.54698983]
[1642918707226,9.6794,2471.3,2470.4,0.00795792]
[1642918707428,9.6794,2471.3,2471.0,0.00454738]
[1642918707629,9.6794,2471.3,2470.4,0.00795792]
[1642918708327,9.6794,2471.3,2470.7,1.4576047]
[1642918708729,9.6794,2471.3,2470.8,0.00568423]
[1642918709331,0.00865681,2471.2,2470.4,0.00795792]
[1642918709529,0.50265681,2471.2,2470.3,0.00852635]
[1642918709729,0.51687,2471.2,2470.0,0.01023162]
[1642918709931,0.494,2471.2,2470.1,0.20228]
[1642918710183,0.494,2471.2,2469.7,0.01193689]
[1642918710371,0.494,2471.2,2469.5,0.01230216]
[1642918710372,1.03628,2471.1,2470.2,0.00909477]
[1642918710574,2.82113,2471.0,2469.6,0.01250531]
[1642918710975,1.0,2470.9,2469.6,0.01250531]
[1642918711376,1.0,2470.9,2469.6,1.49920365]
[1642918711574,0.02287,2470.8,2469.6,1.49920365]
[1642918711775,0.02287,2470.8,2469.7,0.01193689]
[1642918712179,0.02287,2470.8,2469.5,0.01307373]
[1642918712375,1.03641,2470.8,2469.5,0.01307373]
[1642918712580,9.6794,2471.3,2469.6,0.21501564]
[1642918712785,10.1734,2471.3,2470.6,1.247217]
[1642918713176,9.6794,2471.3,2470.7,0.00625265]
[1642918713377,9.6794,2471.3,2470.7,0.00527209]
[1642918714227,6.9453,2471.2,2470.7,0.00527209]
[1642918714829,0.00577698,2471.1,2470.7,0.00527209]
[1642918715028,6.9453,2471.2,2470.7,0.00527209]
[1642918716029,6.9453,2471.2,2470.3,0.00754579]
[1642918716629,6.9453,2471.2,2470.2,1.20201917]
[1642918716833,6.9453,2471.2,2470.2,0.00811421]
[1642918717031,0.02287,2471.1,2470.3,0.00754579]
[1642918717231,0.51687,2471.1,2470.2,0.00811421]
[1642918717431,0.494,2471.1,2469.5,0.21437317]
[1642918717882,0.51687,2471.1,2469.6,0.01152475]
[1642918718085,0.51687,2471.1,2469.8,1.25607051]
[1642918718282,0.51687,2471.1,2469.9,2.80765382]
[1642918718483,0.51687,2471.1,2469.9,2.8174733]
[1642918718685,0.51687,2471.1,2470.0,0.00925106]
[1642918719082,0.494,2471.1,2469.6,0.21380475]
[1642918719484,0.51687,2471.1,2469.7,0.01095633]
[1642918719783,0.51687,2471.1,2469.6,0.01152475]
[1642918719983,0.51687,2471.1,2469.6,0.21380475]
[1642918720186,0.51687,2471.1,2469.6,0.01152475]
[1642918720383,0.51687,2471.1,2469.7,0.01095633]
[1642918720589,0.51687,2471.1,2469.6,0.01152475]
[1642918721628,1.79826521,2471.1,2469.6,0.01152475]
[1642918722332,0.51687,2471.1,2469.6,0.01152475]
[1642918722533,0.51687,2471.1,2469.7,0.20228]
[1642918722745,8.00330238,2471.2,2469.9,1.30349654]
[1642918722935,6.9453,2471.2,2470.0,3.48650789]
[1642918723137,6.9453,2471.2,2470.0,3.49575895]
[1642918723433,6.9453,2471.2,2470.2,1.19708478]
[1642918723634,6.9453,2471.2,2470.3,2.5906682]
[1642918723833,6.9453,2471.2,2470.3,2.59821399]
[1642918724034,6.9453,2471.2,2470.4,0.00697736]
[1642918724237,3.05,2471.0,2469.6,2.81005144]
[1642918724438,0.01208265,2470.5,2469.4,0.00239762]
[1642918724636,0.01208265,2470.5,2469.7,0.00397897]
[1642918724637,0.55243904,2470.4,2469.7,0.00397897]
[1642918724940,0.51687,2470.4,2469.7,0.00397897]
[1642918725380,0.08685181,2470.3,2469.7,0.00397897]
[1642918725582,0.08685181,2470.3,2468.8,0.00909478]
[1642918725786,0.494,2470.2,2468.8,0.00909478]
[1642918726184,11.99469,2470.2,2468.8,0.00909478]
[1642918726383,0.02287,2470.1,2468.8,0.00909478]
[1642918726884,0.02287,2470.1,2469.2,1.33133229]
[1642918727284,19.09399,2470.2,2469.6,1.34909715]
[1642918727485,18.0802,2470.2,2469.6,1.34909715]
[1642918728486,18.07911673,2470.2,2469.6,1.34909715]
[1642918729028,18.07911673,2470.2,2469.6,2.34909715]
[1642918729228,17.5862,2470.2,2469.7,2.80765382]
[1642918729432,17.5862,2470.2,2469.6,1.34909715]
[1642918729627,17.5862,2470.2,2469.8,0.00341054]
[1642918729831,7.0993,2470.2,2469.8,0.00341054]
[1642918730134,0.00284211,2470.9,2469.8,0.00341054]
[1642918730135,0.00284211,2470.9,2470.8,1.36066517]
[1642918730334,0.00284211,2470.9,2470.8,4.27506708]
[1642918730530,7.3131,2471.3,2470.8,4.27506708]
[1642918730531,7.3131,2471.3,2470.8,5.12247502]
[1642918730932,7.3131,2471.3,2470.8,2.47826517]
[1642918730933,0.00454738,2471.2,2470.8,2.47826517]
[1642918731129,0.00454738,2471.2,2470.8,1.1176]
[1642918731329,0.00397896,2471.1,2470.8,1.1176]
[1642918731532,0.00397896,2471.1,2469.9,2.94836783]
[1642918731730,0.00341054,2471.0,2469.9,0.01212615]
[1642918731927,0.00341054,2471.0,2470.0,0.0022737]
[1642918732129,0.00284211,2470.9,2470.0,0.0022737]
[1642918732330,0.00284211,2470.9,2470.4,1.523676]
[1642918732537,0.00227369,2470.8,2470.4,1.523676]
[1642918732974,0.00170527,2470.7,2470.4,1.523676]
[1642918733277,0.00113684,2470.6,2470.4,0.023676]
[1642918734381,0.00113684,2470.6,2470.0,0.0022737]
[1642918734782,0.00113684,2470.6,2469.6,0.20228]
[1642918735478,0.00113684,2470.6,2469.7,1.43767633]
[1642918735880,3.05,2470.5,2468.5,1.2162]
[1642918736087,3.05,2470.5,2468.8,2.33016754]
[1642918736088,0.0122522,2469.9,2468.8,2.33016754]
[1642918736285,0.01067156,2469.2,2469.0,0.00454739]
[1642918736531,3.74639,2469.1,2468.7,0.00239762]
[1642918736728,0.01976937,2469.0,2468.8,0.00113685]
[1642918736928,10.1875,2469.1,2468.9,1.28549692]
[1642918737128,10.1875,2469.1,2468.4,0.00341054]
[1642918737529,10.1875,2469.1,2468.2,0.00454739]
[1642918738027,7.4013,2469.7,2468.3,1.72118042]
[1642918738233,7.4013,2469.7,2468.3,0.14215567]
[1642918738429,0.00341054,2469.6,2468.4,0.00341054]
[1642918738633,0.00341054,2469.6,2468.5,0.14215567]
[1642918738831,0.00284212,2469.5,2468.5,0.14215567]
[1642918739031,0.00284212,2469.5,2469.1,1.26255867]
[1642918739231,0.00227369,2469.4,2469.1,1.26255867]
[1642918739432,0.00227369,2469.4,2468.6,0.0022737]
[1642918739633,0.00170527,2469.3,2468.6,0.0022737]
[1642918739831,0.00170527,2469.3,2468.1,24.20215567]
[1642918739832,0.00170527,2469.3,2468.2,0.00454739]
[1642918740031,0.00113684,2469.2,2468.2,0.00454739]
[1642918740276,0.00113684,2469.2,2468.4,1.44228622]
[1642918740483,0.00170527,2469.3,2468.4,1.44228622]
[1642918740682,0.00170527,2469.3,2468.5,0.00284212]
[1642918740883,2.79108318,2469.6,2468.5,0.00284212]
[1642918740884,0.20352684,2469.2,2468.5,0.00284212]
[1642918741081,0.494,2469.1,2468.2,0.00454739]
[1642918741284,10.1226,2469.1,2468.1,0.00511581]
[1642918741480,0.00514734,2469.0,2468.3,1.21189452]
[1642918741688,10.1226,2469.1,2468.5,1.56006693]
[1642918741693,9.6286,2469.1,2468.5,1.56006693]
[1642918741884,0.00284212,2469.5,2468.5,1.56006693]
[1642918742081,0.00284212,2469.5,2468.7,0.01208828]
[1642918742280,0.00227369,2469.4,2468.7,0.01208828]
[1642918742680,0.00170527,2469.3,2469.1,1.53088529]
[1642918743079,7.04549997,2469.7,2469.1,1.53088529]
[1642918743080,0.00113684,2469.2,2469.1,1.53088529]
[1642918743285,3.05,2468.9,2467.6,1.8869065]
[1642918743483,0.21174795,2468.1,2467.5,4.32394288]
[1642918743686,0.21174795,2468.1,2466.7,3.7598]
[1642918743687,0.01285256,2467.7,2466.7,3.7598]
[1642918743931,0.494,2468.0,2466.8,2.79108318]
[1642918744129,7.46924795,2468.1,2466.8,0.01023162]
[1642918744329,7.46924795,2468.1,2467.7,1.29467715]
[1642918744632,9.7627,2468.7,2467.8,5.84563056]
[1642918744835,6.92,2468.7,2467.8,5.85824921]
[1642918745032,0.00113685,2468.8,2468.0,3.05]
[1642918745234,2.3115,2470.3,2468.5,3.05]
[1642918745432,2.3115,2470.3,2469.5,1.4824426]
[1642918745433,1.34865336,2470.2,2469.5,1.4824426]
[1642918745636,0.00454739,2469.6,2469.5,1.4824426]
[1642918746030,0.00454739,2469.6,2469.0,0.0122045]
[1642918746433,3.64647535,2470.2,2469.0,0.0122045]
[1642918746434,0.00397897,2469.5,2469.0,0.0122045]
[1642918746631,0.00397897,2469.5,2469.1,1.24062378]
[1642918746833,1.054e-05,2469.4,2469.2,2.91642613]
[1642918747034,2.75738639,2470.6,2469.2,2.91642613]
[1642918747035,2.75738639,2470.6,2469.5,0.00078946]
[1642918747234,2.75738639,2470.6,2469.6,0.05783386]
[1642918747432,2.75738639,2470.6,2469.6,2.82077517]
[1642918747433,0.00235266,2470.5,2469.6,2.82077517]
[1642918747678,0.00235266,2470.5,2470.3,1.32348656]
[1642918747873,0.00178424,2470.4,2470.3,3.07348656]
[1642918748981,0.00178424,2470.4,2470.3,5.90234213]
[1642918751552,0.00178424,2470.4,2469.9,3.03059221]
[1642918751746,0.00178424,2470.4,2469.7,0.00219473]
[1642918751946,0.00121581,2470.3,2469.7,0.00219473]
[1642918752348,0.00292108,2470.6,2469.6,0.00276315]
[1642918752547,1.42026321,2470.4,2469.7,2.85507633]
[1642918752947,0.00121581,2470.3,2469.8,2.56533936]
[1642918753151,2.75642553,2471.3,2470.0,3.05]
[1642918753349,2.75642553,2471.3,2470.3,0.0757252]
[1642918753547,4.7513,2473.0,2470.4,3.544]
[1642918753748,0.01297854,2472.7,2470.9,0.01296145]
[1642918753950,0.00341054,2471.2,2470.9,0.01296145]
[1642918754153,1.132114,2471.9,2471.2,1.24889867]
[1642918754449,1.132114,2471.9,2470.5,7.41847816]
[1642918754649,1.132114,2471.9,2470.5,2.76017816]
[1642918754650,0.01272258,2471.5,2470.5,2.76017816]
[1642918754850,0.01272258,2471.5,2470.4,0.00113684]
[1642918755053,0.00454739,2471.4,2470.4,0.00113684]
[1642918755278,0.00454739,2471.4,2470.1,2.76017816]
[1642918755279,0.49854739,2471.4,2470.1,2.76017816]
[1642918755483,0.49854739,2471.4,2470.1,0.00284211]
[1642918755484,1.43365242,2470.6,2470.1,0.00284211]
[1642918755681,1.43365242,2470.6,2470.2,0.00227369]
[1642918755882,1.43365242,2470.6,2470.0,0.00341054]
[1642918756080,1.43365242,2470.6,2469.8,0.00454738]
[1642918756282,0.494,2470.5,2469.8,0.00454738]
[1642918756482,0.494,2470.5,2469.6,1.24228671]
[1642918756884,1.50696144,2470.2,2469.7,0.00511581]
[1642918757090,0.494,2470.1,2469.7,0.00511581]
[1642918757285,10.752,2470.1,2469.6,0.00568423]
[1642918757484,10.752,2470.1,2469.5,0.00078946]
[1642918757485,0.20239,2470.0,2469.5,0.00078946]
[1642918757683,0.494,2469.9,2469.5,0.00078946]
[1642918757886,0.49570527,2469.9,2469.5,0.00078946]
[1642918758085,3.1,2469.7,2468.3,3.0363652]
[1642918758284,1.01406,2469.5,2467.7,2.78133668]
[1642918758487,1.01406,2469.5,2468.4,0.00682108]
[1642918758488,0.01293085,2469.2,2468.4,0.00682108]
[1642918758789,0.01293085,2469.2,2467.2,2.77390692]
[1642918758790,3.1,2469.0,2467.2,2.77390692]
[1642918759040,0.69639,2469.1,2467.8,0.00341054]
[1642918759041,1.34548668,2468.2,2467.8,0.00341054]
[1642918759245,12.28197,2468.9,2467.8,0.00341054]
[1642918759246,0.494,2468.4,2467.8,0.00341054]
[1642918759444,10.57398211,2468.9,2467.6,2.79100704]
[1642918759445,9.5568,2468.9,2467.6,2.79100704]
[1642918759641,0.49627369,2468.8,2467.7,0.00397897]
[1642918759941,0.00170527,2468.7,2467.7,0.00397897]
[1642918760341,0.00113684,2468.6,2467.7,0.00397897]
[1642918760541,0.494,2468.5,2467.7,0.00397897]
[1642918761640,1.15398227,2468.4,2467.7,0.00397897]
[1642918761845,1.64798227,2468.4,2467.7,0.00397897]
[1642918762247,1.64798227,2468.4,2467.6,0.00454739]
[1642918762248,2.66247227,2468.4,2467.6,0.00454739]
[1642918762443,0.20239,2468.3,2467.1,0.00738951]
[1642918762686,0.51414876,2468.2,2467.1,0.00738951]
[1642918762881,0.51414876,2468.2,2466.5,0.01080005]
[1642918762882,0.494,2468.2,2466.5,0.01080005]
[1642918763080,0.494,2468.2,2467.0,2.60759357]
[1642918763081,1.24047313,2467.7,2467.0,2.60759357]
[1642918763284,0.494,2467.6,2467.0,2.60759357]
[1642918763484,0.494,2467.5,2467.1,0.00738951]
[1642918763880,0.494,2467.5,2466.2,0.01263648]
[1642918763881,0.494,2467.5,2466.3,0.0119369]
[1642918764593,0.494,2467.5,2466.4,2.2996729]
[1642918764594,1.09217424,2466.9,2466.4,2.2996729]
[1642918764786,0.494,2467.5,2466.4,2.2996729]
[1642918764986,0.494,2467.5,2466.5,0.01080005]
[1642918765587,0.494,2467.5,2466.7,1.54131577]
[1642918765789,1.86542403,2467.5,2466.8,1.45223104]
[1642918765989,1.86542403,2467.5,2466.8,4.23523274]
[1642918766188,1.86542403,2467.5,2466.9,0.00852635]
[1642918767231,0.20239,2467.4,2466.9,0.00852635]
[1642918767429,0.20239,2467.4,2465.7,2.77637964]
[1642918767430,0.01257734,2467.3,2466.3,0.0119369]
[1642918767627,0.494,2467.2,2465.8,0.01477901]
[1642918768027,0.494,2467.2,2466.2,1.29818225]
[1642918768529,0.20239,2467.1,2466.3,0.0119369]
[1642918768727,0.494,2467.0,2466.3,0.0119369]
[1642918768928,0.494,2466.9,2465.6,0.01591586]
[1642918769132,0.69639,2466.9,2465.6,0.01591586]
[1642918769333,0.494,2466.9,2466.6,1.13842876]
[1642918769534,0.01257734,2467.3,2466.9,1.48199999]
[1642918769535,0.494,2467.3,2466.9,1.48199999]
[1642918769938,0.494,2467.3,2467.0,0.00795793]
[1642918770981,0.494,2467.3,2466.9,1.48199999]
[1642918770982,3.1,2467.2,2466.9,1.48199999]
[1642918771180,3.1,2467.2,2465.3,0.0129801]
[1642918771181,3.1,2467.0,2465.3,0.0129801]
[1642918771383,3.1,2467.0,2465.2,0.00247272]
[1642918771384,0.01297574,2466.8,2465.2,0.00247272]
[1642918771580,1.13985321,2465.9,2465.4,0.00909478]
[1642918771982,0.494,2465.8,2465.4,0.00909478]
[1642918772180,0.494,2465.8,2464.8,0.01250532]
[1642918772585,0.494,2465.8,2464.1,0.02939471]
[1642918772780,0.69639,2465.8,2464.2,0.01591586]
[1642918772981,1.45541991,2464.8,2464.2,0.01591586]
[1642918773183,0.494,2465.1,2464.2,0.01591586]
[1642918774138,1.52902086,2465.0,2464.2,0.01591586]
[1642918774336,0.50983279,2464.9,2464.2,0.01591586]
[1642918774636,0.50983279,2464.9,2463.5,0.01989482]
[1642918774637,0.00854348,2464.8,2463.5,0.01989482]
[1642918774838,0.51180401,2464.7,2463.5,0.01989482]
[1642918775237,1.16906266,2463.8,2463.5,0.01989482]
[1642918775439,1.01614,2464.4,2463.8,3.01318798]
[1642918775837,1.21853,2464.4,2463.9,0.01762113]
[1642918776039,1.21853,2464.4,2463.8,3.01318798]
[1642918776040,3.1,2464.2,2462.5,0.00247272]
[1642918776238,3.1,2464.2,2462.3,0.00247272]
[1642918776239,1.01659,2463.5,2462.3,0.00247272]
[1642918776437,1.01659,2463.5,2462.6,0.0073895]
[1642918776438,10.786,2463.4,2462.6,0.0073895]
[1642918776842,4.3837,2463.3,2462.6,0.0073895]
[1642918777139,10.292,2463.4,2462.6,0.0073895]
[1642918777795,10.292,2463.4,2462.7,1.30199587]
[1642918777992,0.494,2463.3,2462.6,0.0073895]
[1642918778290,0.494,2463.3,2462.2,1.14419548]
[1642918778291,4.9677,2463.3,2462.2,1.14419548]
[1642918778692,2.30300297,2463.2,2462.3,0.00909477]
[1642918778889,0.494,2463.1,2462.3,0.00909477]
[1642918779299,0.494,2463.1,2462.6,1.21583382]
[1642918779695,0.494,2463.1,2462.7,0.00682108]
[1642918780298,0.494,2463.1,2462.0,0.01080004]
[1642918780493,0.494,2463.1,2461.7,0.01497803]
[1642918780694,0.494,2463.1,2461.8,0.01193689]
[1642918780898,1.52441337,2462.2,2461.8,0.01193689]
[1642918781095,0.494,2462.2,2461.8,0.01193689]
[1642918781297,10.4584,2462.1,2461.6,0.01307374]
[1642918781532,10.4584,2462.1,2461.3,0.01477901]
[1642918781726,10.4584,2462.1,2461.3,1.16893807]
[1642918781926,10.4584,2462.1,2461.3,1.15415906]
[1642918782129,10.4584,2462.1,2461.4,0.01421059]
[1642918782332,0.494,2462.5,2461.4,0.01421059]
[1642918782529,0.494,2462.8,2461.6,0.01226403]
[1642918782729,0.47878994,2463.5,2461.4,0.01421059]
[1642918782730,0.494,2462.7,2461.4,0.01421059]
[1642918782933,0.494,2462.6,2461.7,0.01250531]
[1642918783131,0.494,2462.5,2461.1,0.01591586]
[1642918783530,0.494,2462.5,2461.0,1.55012669]
[1642918783734,1.01701,2462.3,2461.1,0.01591586]
[1642918783937,0.494,2462.2,2461.1,0.01591586]
[1642918784143,0.21462891,2462.1,2461.1,0.01591586]
[1642918784339,0.494,2462.2,2460.8,0.01762113]
[1642918784340,0.494,2462.0,2460.8,0.01762113]
[1642918784538,0.494,2461.9,2460.8,0.01762113]
[1642918784739,0.494,2461.8,2460.8,0.01762113]
[1642918784939,1.39561079,2461.2,2460.8,0.01762113]
[1642918785386,0.494,2461.3,2460.8,0.01762113]
[1642918785990,0.20239,2461.2,2460.8,0.01762113]
[1642918786190,0.494,2461.1,2460.8,0.01762113]
[1642918786395,0.494,2461.1,2460.8,1.36541248]
[1642918786593,0.494,2461.9,2461.6,1.55865787]
[1642918786793,6.54699997,2462.2,2461.0,0.01279886]
[1642918786794,0.494,2462.1,2461.0,0.01279886]
[1642918786992,0.494,2462.1,2461.7,0.01250531]
[1642918787189,0.494,2462.1,2461.1,0.01591586]
[1642918787394,1.38413449,2461.7,2461.1,0.01591586]
[1642918787693,1.38413449,2461.7,2460.9,0.0170527]
[1642918787694,1.44618824,2461.3,2460.9,0.0170527]
[1642918787891,0.494,2461.2,2460.9,0.0170527]
[1642918788194,0.99639,2461.2,2460.3,0.02046324]
[1642918788591,0.99639,2461.2,2460.1,0.02160009]
[1642918788939,0.20239,2461.1,2460.1,0.02160009]
[1642918789138,0.494,2461.0,2460.1,0.02160009]
[1642918789340,4.9088,2460.9,2460.1,0.02160009]
[1642918789541,1.99639,2460.8,2460.1,0.02160009]
[1642918789740,5.11112387,2460.8,2460.1,0.02160009]
[1642918789938,1.59744856,2460.7,2460.1,0.02160009]
[1642918790140,1.3657076,2460.2,2460.1,0.02160009]
[1642918790343,0.494,2460.2,2460.1,0.02160009]
[1642918790847,5.11112387,2460.8,2460.2,0.98799999]
[1642918791041,0.494,2460.7,2460.2,0.98799999]
[1642918791241,0.494,2460.7,2460.3,0.02046324]
[1642918791242,1.3898544,2460.6,2460.3,0.02046324]
[1642918791444,2.6,2460.4,2460.2,0.02056323]
[1642918791643,0.494,2460.3,2459.2,0.00247272]
[1642918791844,0.494,2460.2,2459.2,0.00247272]
[1642918792043,0.00113685,2460.5,2460.1,1.20616652]
[1642918792242,0.00227369,2460.7,2460.2,2.76654972]
[1642918792443,0.00227369,2460.7,2460.3,0.20316]
[1642918792692,4.2961,2461.7,2461.0,0.08017709]
[1642918792891,0.50646308,2462.1,2461.4,0.0312741]
[1642918792892,0.494,2462.1,2461.4,0.0312741]
[1642918793093,0.494,2462.1,2461.3,1.2273153]
[1642918793292,4.5451,2462.5,2461.4,0.03087882]
[1642918793293,5.0391,2462.5,2461.4,0.03087882]
[1642918793498,5.0391,2462.5,2461.4,2.76654972]
[1642918793696,0.01023162,2462.4,2461.8,1.4183475]
[1642918793894,0.01023162,2462.4,2462.2,1.25285837]
[1642918794094,0.01023162,2462.4,2461.5,2.77878586]
[1642918794095,0.0096632,2462.3,2461.5,0.20316]
[1642918794493,0.00909477,2462.2,2461.5,0.20316]
[1642918794694,0.00909477,2462.2,2461.2,3.69920761]
[1642918794695,0.00909477,2462.2,2461.2,2.40236761]
[1642918794898,0.01267674,2462.9,2461.4,1.52266507]
[1642918794899,0.00852635,2462.1,2461.4,1.52266507]
[1642918795097,0.00852635,2462.1,2461.5,2.75456558]
[1642918795295,0.00795793,2462.0,2461.6,0.08208785]
[1642918795495,0.00795793,2462.0,2461.5,3.06739715]
[1642918795694,0.0073895,2461.9,2461.6,1.0]
[1642918796098,0.00682108,2461.8,2461.6,1.3]
[1642918796295,0.01288168,2463.3,2462.3,1.4423325]
[1642918796534,0.01288168,2463.3,2461.9,3.75456558]
[1642918796736,0.01288168,2463.3,2461.7,1.19046633]
[1642918796737,0.00795793,2463.2,2461.7,3.94503191]
[1642918796939,0.00795793,2463.2,2461.7,1.19046633]
[1642918796940,0.494,2463.1,2461.7,1.19046633]
[1642918797138,0.5013895,2463.1,2461.8,2.51292766]
[1642918797340,1.29358322,2462.6,2461.8,2.54430189]
[1642918797541,0.00682108,2463.0,2462.1,1.18906536]
[1642918797741,0.494,2463.1,2462.1,1.18906536]
[1642918797742,0.00397896,2462.5,2462.1,1.18906536]
[1642918797941,0.00625266,2462.9,2462.1,1.18906536]